[Event "FIDE World Junior U20-ch Girls 2025"]
[Site "Petrovac"]
[Date "2025.02.28"]
[Round "4.38"]
[White "Zito, Enrica"]
[Black "Blokhin, Sofia"]
[Result "0-1"]
[Annotator "NA"]
[ECO "B76"]
[WhiteElo "1941"]
[BlackElo "2020"]
[PlyCount "78"]
[EventDate "2025.02.23"]
[EventType "swiss"]
[EventCountry "MNE"]
[SourceTitle "playchess.com"]
[Source "ChessBase"]
[SourceQuality "1"]
[TimeControl "40/5400+30:1800+30"]

1. e4 {[%emt 0:00:03]} c5 {[%emt 0:00:05]} 2. Nf3 {[%emt 0:00:03]} d6 {[%emt 0:00:05]} 3. d4 {[%emt 0:00:03]} cxd4 {[%emt 0:00:06]} 4. Nxd4 {[%emt 0:00:04]} Nf6 {[%emt 0:00:06]} 5. Nc3 {[%emt 0:00:03]} g6 {[%emt 0:00:08]} 6. Be3 {[%emt 0:00:04]} Bg7 {[%emt 0:00:07]} 7. f3 {[%emt 0:00:04]} Nc6 {[%emt 0:01:01]} 8. Qd2 {[%emt 0:00:05]} O-O {[%emt 0:00:57]} 9. O-O-O {[%emt 0:00:05]} d5 {[%emt 0:07:27]} 10. exd5 {[%emt 0:00:27]} Nxd5 {[%emt 0:00:06]} 11. Nxc6 {[%emt 0:00:07]} bxc6 {[%emt 0:00:16]} 12. Bd4 {[%emt 0:00:06]} e5 {[%emt 0:11:56]} 13. Bc5 {[%emt 0:00:30]} Be6 {[%emt 0:02:34]} 14. Ne4 {[%emt 0:00:08]} f5 {[%emt 0:36:50]} 15. Bxf8 {[%emt 0:01:43]} Qxf8 {[%emt 0:00:30]} 16. Ng5 {[%emt 0:00:38]} Bh6 {[%emt 0:01:03]} 17. Kb1 {[%emt 0:08:05]} Rb8 {[%emt 0:11:12]} 18. Ka1 {[%emt 0:19:10]} Bxg5 {[%emt 0:02:51]} 19. Qxg5 {[%emt 0:00:35]} Qb4 {[%emt 0:00:26]} 20. b3 {[%emt 0:01:43]} Kg7 {[%emt 0:03:54]} 21. Bc4 {[%emt 0:08:08]} Qc3+ {[%emt 0:00:23]} 22. Kb1 {[%emt 0:00:19]} Qxc4 {[%emt 0:00:26]} 23. Rd3 {[%emt 0:01:15]} Qc5 {[%emt 0:01:50]} 24. h4 {[%emt 0:07:56]} Nb4 {[%emt 0:01:22]} 25. Rd2 {[%emt 0:01:31]} h6 {[%emt 0:01:18]} 26. Qg3 {[%emt 0:00:37]} f4 {[%emt 0:01:53]} 27. Qe1 {[%emt 0:01:55]} Bf5 {[%emt 0:00:38]} 28. Qe2 {[%emt 0:02:11]} Qc3 {[%emt 0:02:02]} 29. Re1 {[%emt 0:01:34]} Rd8 {[%emt 0:06:37]} 30. Red1 {[%emt 0:01:12]} Nd5 {[%emt 0:00:51]} 31. Rd3 {[%emt 0:02:05]} Bxd3 {[%emt 0:00:43]} 32. Rxd3 {[%emt 0:00:02]} Kf6 {[%emt 0:01:24]} 33. h5 {[%emt 0:00:37]} Qb4 {[%emt 0:00:57]} 34. Kb2 {[%emt 0:01:15]} Rg8 {[%emt 0:00:33]} 35. a3 {[%emt 0:02:04]} Qe7 {[%emt 0:00:41]} 36. c4 {[%emt 0:02:50]} Ne3 {[%emt 0:00:14]} 37. Qd2 {[%emt 0:00:13]} Ke6 {[%emt 0:00:48]} 38. g4 {[%emt 0:03:15]} gxh5 {[%emt 0:00:37]} 39. Qh2 {[%emt 0:01:09]} h4 {[%emt 0:00:17]} 0-1

[Event "FIDE World Junior U20-ch Girls 2025"]
[Site "Petrovac"]
[Date "2025.02.28"]
[Round "4.39"]
[White "Zeliantsova, Kseniya"]
[Black "Hernandez, Lexie Grace"]
[Result "1-0"]
[Annotator "NA"]
[ECO "B11"]
[WhiteElo "1999"]
[BlackElo "1892"]
[PlyCount "91"]
[EventDate "2025.02.23"]
[EventType "swiss"]
[EventCountry "MNE"]
[SourceTitle "playchess.com"]
[Source "ChessBase"]
[SourceQuality "1"]
[TimeControl "40/5400+30:1800+30"]

1. e4 {[%emt 0:00:01]} c6 {[%emt 0:01:47]} 2. Nc3 {[%emt 0:00:17]} d5 {[%emt 0:00:30]} 3. Nf3 {[%emt 0:00:05]} Bg4 {[%emt 0:00:03]} 4. h3 {[%emt 0:00:09]} Bxf3 {[%emt 0:00:03]} 5. Qxf3 {[%emt 0:00:06]} e6 {[%emt 0:00:04]} 6. d3 {[%emt 0:00:30]} d4 {[%emt 0:01:10]} 7. Nb1 {[%emt 0:00:48]} c5 {[%emt 0:00:12]} 8. g3 {[%emt 0:01:49]} Nc6 {[%emt 0:00:22]} 9. Bg2 {[%emt 0:01:17]} Bd6 {[%emt 0:01:04]} 10. O-O {[%emt 0:00:59]} Nge7 {[%emt 0:00:54]} 11. Qe2 {[%emt 0:04:17]} Qd7 {[%emt 0:02:15]} 12. Nd2 {[%emt 0:03:40]} O-O {[%emt 0:02:17]} 13. f4 {[%emt 0:02:54]} f6 {[%emt 0:13:10]} 14. a4 {[%emt 0:04:59]} Rae8 {[%emt 0:05:36]} 15. Nc4 {[%emt 0:04:12]} Bc7 {[%emt 0:00:51]} 16. g4 {[%emt 0:06:00]} b6 {[%emt 0:02:01]} 17. f5 {[%emt 0:15:05]} a6 {[%emt 0:03:48]} 18. Bf4 {[%emt 0:04:47]} Bxf4 {[%emt 0:03:19]} 19. Rxf4 {[%emt 0:00:22]} b5 {[%emt 0:00:20]} 20. axb5 {[%emt 0:04:48]} axb5 {[%emt 0:01:20]} 21. Nd2 {[%emt 0:06:47]} Nb4 {[%emt 0:00:59]} 22. Nb3 {[%emt 0:05:35]} exf5 {[%emt 0:01:27]} 23. gxf5 {[%emt 0:02:39]} Ned5 {[%emt 0:00:24]} 24. Rf2 {[%emt 0:05:32]} Qd6 {[%emt 0:04:46]} 25. Ra7 {[%emt 0:07:47]} Ne3 {[%emt 0:00:51]} 26. c3 {[%emt 0:03:52]} Nc6 {[%emt 0:01:22]} 27. Ra6 {[%emt 0:00:40]} Ra8 {[%emt 0:00:52]} 28. e5 {[%emt 0:00:45]} Qxe5 {[%emt 0:05:25]} 29. Rxc6 {[%emt 0:00:07]} c4 {[%emt 0:00:23]} 30. cxd4 {[%emt 0:04:27]} Qg3 {[%emt 0:00:19]} 31. dxc4 {[%emt 0:00:05]} bxc4 {[%emt 0:01:09]} 32. Nd2 {[%emt 0:01:51]} Ra1+ {[%emt 0:02:28]} 33. Nf1 {[%emt 0:00:04]} Qg5 {[%emt 0:00:38]} 34. Re6 {[%emt 0:01:23]} Nxg2 {[%emt 0:02:11]} 35. Rxg2 {[%emt 0:00:16]} Qxf5 {[%emt 0:00:04]} 36. Re7 {[%emt 0:00:33]} g6 {[%emt 0:01:14]} 37. Qe6+ {[%emt 0:00:04]} Qxe6 {[%emt 0:00:04]} 38. Rxe6 {[%emt 0:00:02]} Rd8 {[%emt 0:00:23]} 39. Rd2 {[%emt 0:00:21]} Kf7 {[%emt 0:00:26]} 40. Rc6 {[%emt 0:00:05]} Rc1 {[%emt 0:00:22]} 41. Kf2 {[%emt 0:30:44]} Rd5 {[%emt 0:31:02]} 42. Ne3 {[%emt 0:04:24]} Rh5 {[%emt 0:00:05]} 43. d5 {[%emt 0:00:18]} Rxh3 {[%emt 0:00:17]} 44. d6 {[%emt 0:00:04]} f5 {[%emt 0:03:48]} 45. d7 {[%emt 0:01:02]} f4 {[%emt 0:01:29]} 46. Ng2 {[%emt 0:00:56]} 1-0

[Event "FIDE World Junior U20-ch Girls 2025"]
[Site "Petrovac"]
[Date "2025.02.28"]
[Round "4.40"]
[White "Morales Perez, Ghisell"]
[Black "Zelbova, Lada"]
[Result "1-0"]
[Annotator "NA"]
[ECO "B90"]
[WhiteElo "1902"]
[BlackElo "1994"]
[PlyCount "58"]
[EventDate "2025.02.23"]
[EventType "swiss"]
[EventCountry "MNE"]
[SourceTitle "playchess.com"]
[Source "ChessBase"]
[SourceQuality "1"]
[TimeControl "40/5400+30:1800+30"]

1. e4 {[%emt 0:00:08]} c5 {[%emt 0:00:05]} 2. Nf3 {[%emt 0:00:11]} d6 {[%emt 0:00:06]} 3. d4 {[%emt 0:00:05]} cxd4 {[%emt 0:00:06]} 4. Nxd4 {[%emt 0:00:07]} Nf6 {[%emt 0:00:05]} 5. Nc3 {[%emt 0:00:06]} a6 {[%emt 0:00:05]} 6. Qd3 {[%emt 0:00:24]} e5 {[%emt 0:02:58]} 7. Nf5 {[%emt 0:00:22]} Bxf5 {[%emt 0:13:53]} 8. exf5 {[%emt 0:00:32]} h6 {[%emt 0:01:04]} 9. Be3 {[%emt 0:20:02]} d5 {[%emt 0:12:42]} 10. O-O-O {[%emt 0:18:53]} d4 {[%emt 0:02:22]} 11. f4 {[%emt 0:03:04]} Be7 {[%emt 0:22:41]} 12. fxe5 {[%emt 0:18:53]} dxc3 {[%emt 0:01:44]} 13. Qxc3 {[%emt 0:06:21]} Nd5 {[%emt 0:07:29]} 14. Qb3 {[%emt 0:00:41]} Bg5 {[%emt 0:00:35]} 15. Bxg5 {[%emt 0:00:30]} Qxg5+ {[%emt 0:00:46]} 16. Rd2 {[%emt 0:00:32]} Nc6 {[%emt 0:07:17]} 17. Qxb7 {[%emt 0:06:27]} O-O {[%emt 0:00:22]} 18. Qxc6 {[%emt 0:01:02]} Rfd8 {[%emt 0:08:16]} 19. Bd3 {[%emt 0:06:27]} Rac8 {[%emt 0:02:29]} 20. Qa4 {[%emt 0:02:05]} Nb6 {[%emt 0:01:48]} 21. Qe4 {[%emt 0:01:58]} Nc4 {[%emt 0:01:12]} 22. Rhd1 {[%emt 0:00:53]} Nxd2 {[%emt 0:00:45]} 23. Rxd2 {[%emt 0:00:09]} Rc5 {[%emt 0:01:19]} 24. h4 {[%emt 0:03:33]} Qg3 {[%emt 0:03:47]} 25. f6 {[%emt 0:00:43]} g6 {[%emt 0:02:36]} 26. e6 {[%emt 0:00:20]} Re5 {[%emt 0:05:06]} 27. e7 {[%emt 0:04:17]} Rb8 {[%emt 0:00:29]} 28. Qd4 {[%emt 0:00:29]} Kh7 {[%emt 0:01:13]} 29. c3 {[%emt 0:01:34]} a5 {[%emt 0:00:44]} 1-0

[Event "FIDE World Junior U20-ch Girls 2025"]
[Site "Petrovac"]
[Date "2025.02.28"]
[Round "4.41"]
[White "Djendjinovic, Ines"]
[Black "Beber, Anja"]
[Result "0-1"]
[Annotator "NA"]
[ECO "B07"]
[WhiteElo "1841"]
[BlackElo "1988"]
[PlyCount "90"]
[EventDate "2025.02.23"]
[EventType "swiss"]
[EventCountry "MNE"]
[SourceTitle "playchess.com"]
[Source "ChessBase"]
[SourceQuality "1"]
[TimeControl "40/5400+30:1800+30"]

1. d4 {[%emt 0:00:02]} g6 {[%emt 0:00:08]} 2. e4 {[%emt 0:00:23]} Bg7 {[%emt 0:00:11]} 3. Nf3 {[%emt 0:00:06]} d6 {[%emt 0:00:12]} 4. c3 {[%emt 0:00:31]} Nd7 {[%emt 0:02:25]} 5. Bd3 {[%emt 0:00:07]} e5 {[%emt 0:00:19]} 6. O-O {[%emt 0:00:47]} Ngf6 {[%emt 0:01:21]} 7. Re1 {[%emt 0:00:11]} O-O {[%emt 0:00:20]} 8. h3 {[%emt 0:00:31]} Re8 {[%emt 0:02:16]} 9. Nbd2 {[%emt 0:01:31]} c6 {[%emt 0:04:13]} 10. a4 {[%emt 0:00:55]} Qc7 {[%emt 0:05:59]} 11. dxe5 {[%emt 0:07:29]} dxe5 {[%emt 0:01:07]} 12. Nf1 {[%emt 0:01:55]} Nc5 {[%emt 0:12:23]} 13. Bc2 {[%emt 0:00:20]} b6 {[%emt 0:02:18]} 14. Ng3 {[%emt 0:08:47]} Rd8 {[%emt 0:09:47]} 15. Bd2 {[%emt 0:05:52]} Ba6 {[%emt 0:00:36]} 16. b4 {[%emt 0:01:02]} Ne6 {[%emt 0:09:32]} 17. Qc1 {[%emt 0:08:18]} Bc4 {[%emt 0:04:18]} 18. Bb1 {[%emt 0:02:03]} Rd7 {[%emt 0:04:57]} 19. Ba2 {[%emt 0:01:37]} Bxa2 {[%emt 0:04:07]} 20. Rxa2 {[%emt 0:00:05]} Rad8 {[%emt 0:00:09]} 21. Rc2 {[%emt 0:14:58]} c5 {[%emt 0:06:00]} 22. Be3 {[%emt 0:03:09]} Rc8 {[%emt 0:05:10]} 23. b5 {[%emt 0:03:07]} Rcd8 {[%emt 0:03:06]} 24. Rd2 {[%emt 0:03:50]} c4 {[%emt 0:05:50]} 25. Red1 {[%emt 0:02:53]} Nf4 {[%emt 0:06:56]} 26. Rxd7 {[%emt 0:08:06]} Rxd7 {[%emt 0:00:14]} 27. Rxd7 {[%emt 0:00:54]} Nxd7 {[%emt 0:00:07]} 28. Ne1 {[%emt 0:00:16]} h5 {[%emt 0:00:59]} 29. Qd1 {[%emt 0:03:11]} Nc5 {[%emt 0:02:07]} 30. Bxc5 {[%emt 0:01:21]} Qxc5 {[%emt 0:00:09]} 31. Qc2 {[%emt 0:06:07]} Bh6 {[%emt 0:01:39]} 32. Ne2 {[%emt 0:01:51]} Qa3 {[%emt 0:00:38]} 33. Nxf4 {[%emt 0:01:26]} exf4 {[%emt 0:00:20]} 34. Nf3 {[%emt 0:01:19]} Bg7 {[%emt 0:00:11]} 35. Nd2 {[%emt 0:02:25]} Qc5 {[%emt 0:02:44]} 36. Nb1 {[%emt 0:03:40]} Bf8 {[%emt 0:01:09]} 37. Qd2 {[%emt 0:01:45]} Qe5 {[%emt 0:02:19]} 38. Qd5 {[%emt 0:00:32]} Qf6 {[%emt 0:01:46]} 39. Qxc4 {[%emt 0:01:23]} f3 {[%emt 0:00:12]} 40. g3 {[%emt 0:01:44]} Qg5 {[%emt 0:00:57]} 41. Qf1 {[%emt 0:30:58]} h4 {[%emt 0:30:18]} 42. Kh2 {[%emt 0:00:00]} hxg3+ 43. fxg3 {[%emt 0:00:00]} Qe3 {[%emt 0:00:00]} 44. Qg1 {[%emt 0:00:00]} Qe2+ {[%emt 0:00:00]} 45. Kh1 {[%emt 0:00:00]} f2 {[%emt 0:00:00]} 0-1

[Event "FIDE World Junior U20-ch Girls 2025"]
[Site "Petrovac"]
[Date "2025.02.28"]
[Round "4.42"]
[White "Ajradinoska, Indzi"]
[Black "Radenkovic, Mila"]
[Result "0-1"]
[Annotator "ChessBase"]
[ECO "A88"]
[WhiteElo "1761"]
[BlackElo "2027"]
[PlyCount "148"]
[EventDate "2025.02.23"]
[EventType "swiss"]
[EventCountry "MNE"]
[SourceTitle "playchess.com"]
[Source "ChessBase"]
[SourceQuality "1"]
[TimeControl "40/5400+30:1800+30"]

1. d4 {[%emt 0:00:03]} f5 {[%emt 0:00:13]} 2. Nf3 {[%emt 0:00:07]} Nf6 {[%emt 0:00:05]} 3. g3 {[%emt 0:00:26]} g6 {[%emt 0:00:05]} 4. Bg2 {[%emt 0:00:05]} Bg7 {[%emt 0:00:03]} 5. O-O {[%emt 0:00:16]} O-O {[%emt 0:00:06]} 6. c4 {[%emt 0:01:54]} d6 {[%emt 0:00:16]} 7. Nc3 {[%emt 0:00:31]} c6 {[%emt 0:00:28]} 8. Re1 {[%emt 0:00:47]} Na6 {[%emt 0:08:32]} 9. e4 {[%emt 0:16:20]} h6 {[%emt 0:14:33]} 10. e5 {[%emt 0:07:33]} dxe5 {[%emt 0:02:18]} 11. Nxe5 {[%emt 0:02:18]} Kh7 {[%emt 0:00:10]} 12. Be3 {[%emt 0:03:45]} Nd7 {[%emt 0:01:14]} 13. Nf3 {[%emt 0:06:54]} Re8 {[%emt 0:07:13]} 14. Qc2 {[%emt 0:06:01]} e5 {[%emt 0:01:19]} 15. dxe5 {[%emt 0:01:14]} Nxe5 {[%emt 0:00:24]} 16. Rad1 {[%emt 0:01:28]} Qc7 {[%emt 0:04:41]} 17. Bf4 {[%emt 0:13:42]} Nxf3+ {[%emt 0:00:53]} 18. Bxf3 {[%emt 0:00:11]} Qf7 {[%emt 0:02:49]} 19. Rxe8 {[%emt 0:03:58]} Qxe8 {[%emt 0:00:02]} 20. a3 {[%emt 0:00:07]} Be6 {[%emt 0:00:28]} 21. Re1 {[%emt 0:00:38]} Qf7 {[%emt 0:00:40]} 22. b3 {[%emt 0:00:29]} Re8 {[%emt 0:08:40]} 23. Rd1 {[%emt 0:02:54]} Qf6 {[%emt 0:03:26]} 24. Ne2 {[%emt 0:02:57]} Rd8 {[%emt 0:01:39]} 25. Rxd8 {[%emt 0:03:42]} Qxd8 {[%emt 0:00:33]} 26. Bd2 {[%emt 0:00:23]} Nc5 {[%emt 0:03:48]} 27. Bc3 {[%emt 0:01:38]} Qd3 {[%emt 0:04:19]} 28. Qxd3 {[%emt 0:02:21]} Nxd3 {[%emt 0:00:02]} 29. Bxg7 {[%emt 0:02:47]} Kxg7 {[%emt 0:00:01]} 30. Nd4 {[%emt 0:00:45]} Kf6 {[%emt 0:00:23]} 31. Be2 {[%emt 0:01:01]} Nc1 {[%emt 0:01:52]} 32. Bd1 {[%emt 0:05:19]} Ke5 {[%emt 0:03:23]} 33. Nxe6 {[%emt 0:05:10]} Kxe6 {[%emt 0:00:01]} 34. f4 {[%emt 0:00:25]} a5 {[%emt 0:11:46]} 35. Kf2 {[%emt 0:00:51]} Nd3+ {[%emt 0:02:42]} 36. Ke3 {[%emt 0:00:51]} Nc5 {[%emt 0:00:03]} 37. Bc2 {[%emt 0:00:48]} Kd6 {[%emt 0:02:51]} 38. Kd4 {[%emt 0:03:00]} Ne6+ {[%emt 0:00:33]} 39. Kc3 {[%emt 0:00:29]} Ng7 {[%emt 0:03:59]} 40. Kd4 {[%emt 0:02:35]} b6 {[%emt 0:01:16]} 41. b4 {[%emt 0:30:57]} axb4 42. axb4 {[%emt 0:00:07]} c5+ {[%emt 0:30:55]} 43. Kc3 {[%emt 0:00:14]} Ne8 {[%emt 0:00:19]} 44. h3 {[%emt 0:02:47]} Nf6 {[%emt 0:03:25]} 45. g4 {[%emt 0:00:00]} fxg4 46. hxg4 {[%emt 0:00:00]} g5 {[%emt 0:00:00]} 47. fxg5 hxg5 {[%emt 0:00:00]} 48. Bf5 {[%emt 0:00:00]} Ke5 {[%emt 0:00:00]} 49. bxc5 bxc5 {[%emt 0:00:00]} 50. Kb3 {[%emt 0:00:00]} Kd4 {[%emt 0:00:00]} 51. Be6 {[%emt 0:00:00]} Ke5 {[%emt 0:00:00]} 52. Bc8 {[%emt 0:00:00]} Kd4 {[%emt 0:00:00]} 53. Be6 {[%emt 0:00:00]} Ne4 {[%emt 0:00:00]} 54. Ka4 {[%emt 0:00:00]} Nd6 {[%emt 0:00:00]} 55. Kb3 {[%emt 0:00:00]} Ke5 {[%emt 0:00:00]} 56. Bd5 {[%emt 0:00:00]} Ne8 {[%emt 0:00:00]} 57. Bb7 {[%emt 0:00:00]} Nd6 {[%emt 0:06:43]} 58. Bd5 {[%emt 0:00:00]} Ne8 {[%emt 0:01:15]} 59. Bb7 {[%emt 0:00:00]} Nf6 {[%emt 0:00:20]} 60. Bc8 {[%emt 0:00:00]} Ne4 {[%emt 0:00:57]} 61. Bd7 {[%emt 0:00:00]} Kd4 {[%emt 0:00:24]} 62. Be6 {[%emt 0:00:00]} Nd2+ {[%emt 0:00:06]} 63. Kc2 {[%emt 0:00:17]} Nxc4 {[%emt 0:00:03]} 64. Kb3 {[%emt 0:00:22]} Ne3 {[%emt 0:00:18]} 65. Kb2 {[%emt 0:00:50]} Kd3 {[%emt 0:03:31]} 66. Kc1 {[%emt 0:00:58]} c4 {[%emt 0:00:25]} 67. Bf5+ {[%emt 0:01:31]} Kd4 {[%emt 0:01:44]} 68. Be6 {[%emt 0:00:51]} c3 {[%emt 0:00:06]} 69. Bf5 {[%emt 0:00:21]} Nxf5 {[%emt 0:02:04]} 70. gxf5 {[%emt 0:00:07]} Ke5 {[%emt 0:00:03]} 71. Kc2 {[%emt 0:00:20]} Kxf5 {[%emt 0:00:04]} 72. Kxc3 {[%emt 0:00:07]} Kf4 {[%emt 0:00:13]} 73. Kd2 {[%emt 0:00:15]} Kf3 {[%emt 0:00:07]} 74. Ke1 {[%emt 0:00:15]} Kg2 {[%emt 0:00:02]} 0-1

[Event "FIDE World Junior U20-ch Girls 2025"]
[Site "Petrovac"]
[Date "2025.02.28"]
[Round "4.43"]
[White "Popovic, Mateja"]
[Black "Shuqja, Klean"]
[Result "1/2-1/2"]
[Annotator "NA"]
[ECO "D30"]
[WhiteElo "1917"]
[BlackElo "2049"]
[PlyCount "97"]
[EventDate "2025.02.23"]
[EventType "swiss"]
[EventCountry "MNE"]
[SourceTitle "playchess.com"]
[Source "ChessBase"]
[SourceQuality "1"]
[TimeControl "40/5400+30:1800+30"]

1. d4 {[%emt 0:00:03]} Nf6 {[%emt 0:02:37]} 2. c4 {[%emt 0:00:10]} e6 {[%emt 0:00:05]} 3. Nf3 {[%emt 0:00:25]} d5 {[%emt 0:00:09]} 4. Bg5 {[%emt 0:02:41]} h6 {[%emt 0:02:57]} 5. Bh4 {[%emt 0:02:49]} Be7 {[%emt 0:04:01]} 6. Nc3 {[%emt 0:01:01]} Nbd7 {[%emt 0:04:19]} 7. e3 {[%emt 0:00:47]} c6 {[%emt 0:02:28]} 8. cxd5 {[%emt 0:04:41]} exd5 {[%emt 0:02:15]} 9. Bd3 {[%emt 0:00:23]} O-O {[%emt 0:04:16]} 10. O-O {[%emt 0:01:18]} b6 {[%emt 0:07:29]} 11. a3 {[%emt 0:07:10]} c5 {[%emt 0:08:15]} 12. dxc5 {[%emt 0:02:05]} bxc5 {[%emt 0:01:09]} 13. Rc1 {[%emt 0:06:16]} Bb7 {[%emt 0:06:07]} 14. Bb1 {[%emt 0:13:26]} Rc8 {[%emt 0:08:22]} 15. Qd3 {[%emt 0:06:30]} Qb6 {[%emt 0:03:34]} 16. Rfd1 {[%emt 0:03:48]} Rfd8 {[%emt 0:07:15]} 17. Qc2 {[%emt 0:08:33]} d4 {[%emt 0:07:40]} 18. Na4 {[%emt 0:06:59]} Qb5 {[%emt 0:10:43]} 19. b3 {[%emt 0:05:43]} Bd5 {[%emt 0:05:15]} 20. Nc3 {[%emt 0:12:33]} Qxb3 {[%emt 0:02:44]} 21. Nxd5 {[%emt 0:00:11]} Qxd5 {[%emt 0:00:10]} 22. Bxf6 {[%emt 0:02:51]} Nxf6 {[%emt 0:00:41]} 23. exd4 {[%emt 0:00:12]} c4 {[%emt 0:01:18]} 24. Qc3 {[%emt 0:01:28]} Qb5 {[%emt 0:03:52]} 25. Nd2 {[%emt 0:01:04]} Qa4 {[%emt 0:03:13]} 26. Nxc4 {[%emt 0:00:51]} Bxa3 {[%emt 0:00:45]} 27. Qxa3 {[%emt 0:03:30]} Rxc4 {[%emt 0:00:08]} 28. Qxa4 {[%emt 0:00:16]} Rxa4 {[%emt 0:00:02]} 29. d5 {[%emt 0:00:11]} g6 {[%emt 0:00:55]} 30. f3 {[%emt 0:03:40]} Rxd5 {[%emt 0:00:41]} 31. Rc8+ {[%emt 0:00:33]} Kg7 {[%emt 0:00:12]} 32. Rdc1 {[%emt 0:00:19]} Ra1 {[%emt 0:01:34]} 33. R8c2 {[%emt 0:01:00]} a5 {[%emt 0:01:03]} 34. Ba2 {[%emt 0:01:12]} Rxc1+ 35. Rxc1 {[%emt 0:00:05]} Rd2 {[%emt 0:00:42]} 36. Bc4 {[%emt 0:00:43]} Nd7 {[%emt 0:00:45]} 37. Ra1 {[%emt 0:00:19]} Nb6 {[%emt 0:00:46]} 38. Bb5 {[%emt 0:01:26]} Rd5 {[%emt 0:00:28]} 39. Rxa5 {[%emt 0:00:05]} Rc5 {[%emt 0:00:31]} 40. Kf2 {[%emt 0:00:20]} Nc4 {[%emt 0:00:32]} 41. Ra4 {[%emt 0:30:15]} Nb2 {[%emt 0:30:30]} 42. Rb4 {[%emt 0:00:05]} Nd1+ {[%emt 0:00:14]} 43. Ke1 {[%emt 0:00:00]} Ne3 {[%emt 0:00:00]} 44. Kf2 {[%emt 0:00:00]} Nd1+ {[%emt 0:00:00]} 45. Ke1 {[%emt 0:00:00]} Ne3 {[%emt 0:00:00]} 46. Kf2 {[%emt 0:00:00]} Nd5 {[%emt 0:00:00]} 47. Rb2 {[%emt 0:00:00]} Nc3 {[%emt 0:00:00]} 48. Be2 Nxe2 {[%emt 0:00:00]} 49. Rxe2 {[%emt 0:00:00]} 1/2-1/2

[Event "FIDE World Junior U20-ch Girls 2025"]
[Site "Petrovac"]
[Date "2025.02.28"]
[Round "4.44"]
[White "Popova, Kira"]
[Black "Li, Anna Sofie"]
[Result "0-1"]
[Annotator "NA"]
[ECO "C89"]
[WhiteElo "1534"]
[BlackElo "2016"]
[PlyCount "38"]
[EventDate "2025.02.23"]
[EventType "swiss"]
[EventCountry "MNE"]
[SourceTitle "playchess.com"]
[Source "ChessBase"]
[SourceQuality "1"]
[TimeControl "40/5400+30:1800+30"]

1. e4 {[%emt 0:00:02]} e5 {[%emt 0:00:07]} 2. Nf3 {[%emt 0:00:06]} Nc6 {[%emt 0:00:08]} 3. Bb5 {[%emt 0:00:11]} a6 {[%emt 0:00:05]} 4. Ba4 {[%emt 0:00:05]} Nf6 {[%emt 0:00:06]} 5. O-O {[%emt 0:00:09]} Be7 {[%emt 0:00:04]} 6. Re1 {[%emt 0:00:16]} b5 {[%emt 0:00:06]} 7. Bb3 {[%emt 0:00:06]} O-O {[%emt 0:00:15]} 8. c3 {[%emt 0:00:11]} d5 {[%emt 0:00:07]} 9. exd5 {[%emt 0:01:01]} Nxd5 {[%emt 0:00:12]} 10. Nxe5 {[%emt 0:00:18]} Nxe5 {[%emt 0:00:07]} 11. Rxe5 {[%emt 0:00:09]} c6 {[%emt 0:00:10]} 12. d4 {[%emt 0:00:58]} Bd6 {[%emt 0:00:06]} 13. Re1 {[%emt 0:01:32]} Qh4 {[%emt 0:00:41]} 14. h3 {[%emt 0:00:57]} Bxh3 {[%emt 0:04:11]} 15. Bxd5 {[%emt 0:19:00]} cxd5 {[%emt 0:18:52]} 16. gxh3 {[%emt 0:10:08]} Qxh3 {[%emt 0:00:54]} 17. f4 {[%emt 0:01:55]} Rae8 {[%emt 0:04:53]} 18. Na3 {[%emt 0:16:06]} Qg3+ {[%emt 0:04:32]} 19. Kh1 {[%emt 0:00:50]} Rxe1+ {[%emt 0:00:18]} 0-1

[Event "FIDE World Junior U20-ch Girls 2025"]
[Site "Petrovac"]
[Date "2025.02.28"]
[Round "4.45"]
[White "Hernandez Diaz, Paula Sofia"]
[Black "Xu, Luna Yuexiu"]
[Result "1-0"]
[Annotator "NA"]
[ECO "E04"]
[WhiteElo "1972"]
[BlackElo "1903"]
[PlyCount "89"]
[EventDate "2025.02.23"]
[EventType "swiss"]
[EventCountry "MNE"]
[SourceTitle "playchess.com"]
[Source "ChessBase"]
[SourceQuality "1"]
[TimeControl "40/5400+30:1800+30"]

1. d4 {[%emt 0:00:01]} d5 {[%emt 0:00:37]} 2. c4 {[%emt 0:00:13]} e6 {[%emt 0:00:29]} 3. Nf3 {[%emt 0:00:21]} Nf6 {[%emt 0:00:27]} 4. g3 {[%emt 0:00:21]} dxc4 {[%emt 0:01:01]} 5. Bg2 {[%emt 0:00:51]} a6 {[%emt 0:00:53]} 6. O-O {[%emt 0:04:45]} Be7 {[%emt 0:02:18]} 7. a4 {[%emt 0:01:55]} Bd7 {[%emt 0:02:52]} 8. Qc2 {[%emt 0:03:45]} Bc6 {[%emt 0:02:13]} 9. Qxc4 {[%emt 0:00:35]} Bd5 {[%emt 0:00:57]} 10. Qc3 {[%emt 0:03:43]} O-O {[%emt 0:02:27]} 11. Bf4 {[%emt 0:02:37]} Nc6 {[%emt 0:04:53]} 12. Nbd2 {[%emt 0:06:57]} Bb4 {[%emt 0:05:39]} 13. Qc2 {[%emt 0:03:20]} Bxd2 {[%emt 0:07:01]} 14. Qxd2 {[%emt 0:03:35]} Bxf3 {[%emt 0:05:21]} 15. Bxf3 {[%emt 0:01:43]} Qxd4 {[%emt 0:00:50]} 16. Bxc6 {[%emt 0:01:50]} Qxd2 {[%emt 0:00:19]} 17. Bxd2 {[%emt 0:00:01]} bxc6 {[%emt 0:00:21]} 18. Rfc1 {[%emt 0:01:05]} Rab8 {[%emt 0:00:58]} 19. Rab1 {[%emt 0:00:33]} Nd5 {[%emt 0:05:54]} 20. Rxc6 {[%emt 0:02:09]} Rb6 {[%emt 0:00:58]} 21. Rc4 {[%emt 0:01:40]} Rfb8 {[%emt 0:04:57]} 22. b4 {[%emt 0:01:03]} f5 {[%emt 0:01:31]} 23. f3 {[%emt 0:00:54]} R6b7 {[%emt 0:09:55]} 24. e4 {[%emt 0:04:56]} Nb6 {[%emt 0:02:58]} 25. Rc6 {[%emt 0:02:06]} Nxa4 {[%emt 0:01:26]} 26. Rxa6 {[%emt 0:00:27]} Nb6 {[%emt 0:01:36]} 27. Bc3 {[%emt 0:02:55]} Ra8 {[%emt 0:02:04]} 28. Rxa8+ {[%emt 0:05:02]} Nxa8 {[%emt 0:00:09]} 29. Rd1 {[%emt 0:00:21]} Nb6 {[%emt 0:01:19]} 30. Rd8+ {[%emt 0:01:02]} Kf7 {[%emt 0:01:22]} 31. Rh8 {[%emt 0:00:26]} Kg6 {[%emt 0:01:24]} 32. h4 {[%emt 0:06:52]} Na4 {[%emt 0:02:23]} 33. h5+ {[%emt 0:02:24]} Kf7 {[%emt 0:00:31]} 34. Be5 {[%emt 0:04:22]} c6 {[%emt 0:02:19]} 35. h6 {[%emt 0:03:00]} Kg6 {[%emt 0:02:54]} 36. hxg7 {[%emt 0:00:12]} Rxg7 {[%emt 0:01:40]} 37. Bxg7 {[%emt 0:00:07]} Kxg7 {[%emt 0:00:12]} 38. Rc8 {[%emt 0:00:04]} c5 {[%emt 0:04:29]} 39. bxc5 {[%emt 0:00:08]} Kf6 {[%emt 0:02:05]} 40. c6 {[%emt 0:00:20]} Ke7 {[%emt 0:01:06]} 41. Ra8 {[%emt 0:30:24]} Nb6 {[%emt 0:31:54]} 42. Rb8 {[%emt 0:00:15]} Nc4 {[%emt 0:01:45]} 43. c7 {[%emt 0:00:10]} Nd6 {[%emt 0:00:37]} 44. c8=Q {[%emt 0:00:10]} Nxc8 {[%emt 0:00:26]} 45. Rxc8 {[%emt 0:00:05]} 1-0